bitfinex-derivatives/quotes_SOLF0:USTF0_20250928
["timestamp","ask_amount","ask_price","bid_price","bid_amount"]
[1759031436571,4.4688,201.29,201.24,7.71]
[1759031437159,7.57,201.28,201.24,7.71]
[1759031437365,4.4688,201.29,201.24,7.71]
[1759031437566,7.57,201.28,201.24,7.71]
[1759031437768,4.4688,201.29,201.24,7.71]
[1759031438774,7.57,201.28,201.24,7.71]
[1759031438972,4.4688,201.29,201.24,7.71]
[1759031439274,7.57,201.28,201.24,7.71]
[1759031439569,4.4688,201.29,201.24,7.71]
[1759031439769,7.57,201.28,201.24,7.71]
[1759031440069,12.0388,201.29,201.23,7.71]
[1759031445081,1.90110568,201.31,201.2,7.71]
[1759031445285,80.49031669,201.3,201.2,7.71]
[1759031445485,7.57,201.28,201.2,7.71]
[1759031446584,4.4694,201.26,201.2,7.71]
[1759031446788,7.57,201.25,201.2,7.71]
[1759031446985,4.4694,201.26,201.2,7.71]
[1759031447586,7.57,201.25,201.2,7.71]
[1759031448185,7.57,201.25,201.19,12.1806]
[1759031450385,7.57,201.25,201.16,7.71]
[1759031450589,7.57,201.25,201.13,369.33]
[1759031450590,5.31409335,201.24,201.13,369.33]
[1759031450890,4.4708,201.2,201.13,7.71]
[1759031451186,7.57,201.19,201.13,7.71]
[1759031453688,4.4702,201.23,201.13,4.472]
[1759031453894,8.01,201.22,201.14,7.77]
[1759031454588,8.01,201.22,201.14,13.45888109]
[1759031454794,8.01,201.22,201.15,7.77]
[1759031457592,4.4706,201.21,201.15,7.77]
[1759031462093,8.01,201.22,201.15,7.77]
[1759031464497,12.4804,201.22,201.15,7.77]
[1759031468492,12.4804,201.22,201.15,12.2416]
[1759031468694,12.4804,201.22,201.16,7.77]
[1759031469496,12.4804,201.22,201.11,8.36785286]
[1759031469497,8.58708109,201.29,201.2,1.21708109]
[1759031469698,7.37,201.27,201.21,7.63]
[1759031470697,11.8393,201.26,201.2,8.84708109]
[1759031473502,11.8393,201.26,201.2,13.31758109]
[1759031473800,7.37,201.26,201.2,13.31758109]
[1759031474002,7.37,201.26,201.22,1.21708109]
[1759031474403,7.37,201.26,201.23,7.63]
[1759031474798,7.37,201.26,201.22,1.21708109]
[1759031475499,11.8389,201.28,201.24,1.21708109]
[1759031475804,11.8389,201.28,201.25,7.63]
[1759031476000,11.8389,201.28,201.24,1.21708109]
[1759031476299,11.8389,201.28,201.25,7.63]
[1759031476501,7.37,201.27,201.25,7.63]
[1759031485406,8.0,201.29,201.25,7.63]
[1759031485600,8.0,201.29,201.24,1.21708109]
[1759031485802,8.0,201.29,201.25,7.63]
[1759031486007,8.0,201.29,201.24,1.21708109]
[1759031486408,8.0,201.29,201.25,7.63]
[1759031487202,8.0,201.29,201.24,1.21708109]
[1759031487806,8.0,201.29,201.25,7.63]
[1759031488006,8.0,201.29,201.24,1.21708109]
[1759031488511,8.0,201.29,201.25,7.63]
[1759031488912,8.0,201.29,201.24,1.21708109]
[1759031489110,8.0,201.29,201.25,7.63]
[1759031489308,8.0,201.29,201.24,1.21708109]
[1759031489708,8.0,201.29,201.25,7.63]
[1759031490109,12.468,201.32,201.25,12.0994]
[1759031490405,12.4683,201.31,201.24,1.21708109]
[1759031490608,12.4683,201.31,201.25,7.63]
[1759031497521,12.4683,201.31,201.24,5.68668109]
[1759031499118,4.4683,201.31,201.24,13.31668109]
[1759031499320,8.0,201.3,201.24,13.31668109]
[1759031499720,8.0,201.3,201.24,12.0996]
[1759031505824,12.4683,201.31,201.25,7.63]
[1759031506625,8.0,201.29,201.23,7.63]
[1759031507419,12.4688,201.29,201.23,7.63]
[1759031507922,8.0,201.29,201.23,12.0998]
[1759031508121,8.0,201.29,201.24,7.63]
[1759031509324,8.0,201.29,201.23,5.68688109]
[1759031509524,8.0,201.29,201.24,7.63]
[1759031509827,8.0,201.3,201.24,7.63]
[1759031510932,13.68558109,201.3,201.23,4.4698]
[1759031512223,13.68558109,201.3,201.24,7.63]
[1759031516635,12.4685,201.3,201.24,7.63]
[1759031516927,12.4685,201.3,201.24,4.4696]
[1759031517131,12.4685,201.3,201.25,7.83]
[1759031517332,7.93,201.29,201.24,4.4696]
[1759031517926,7.93,201.29,201.25,7.83]
[1759031518122,7.93,201.29,201.24,4.4696]
[1759031518429,7.93,201.29,201.25,7.83]
[1759031518632,7.93,201.29,201.24,4.4696]
[1759031518832,7.93,201.29,201.25,7.83]
[1759031519034,7.93,201.29,201.24,4.4696]
[1759031519429,4.4685,201.3,201.25,7.83]
[1759031519834,12.3985,201.3,201.24,12.2996]
[1759031520341,4.468,201.32,201.25,7.83]
[1759031520536,4.468,201.32,201.26,7.83]
[1759031522840,4.468,201.32,201.26,12.2992]
[1759031530741,4.468,201.32,201.27,7.52]
[1759031531147,4.468,201.32,201.26,4.4692]
[1759031531148,12.438,201.32,201.26,4.4692]
[1759031531349,12.438,201.32,201.27,7.52]
[1759031531651,7.97,201.31,201.26,4.4692]
[1759031532043,7.97,201.31,201.27,7.52]
[1759031532250,7.97,201.31,201.26,4.4692]
[1759031533042,7.97,201.31,201.27,7.52]
[1759031533247,7.97,201.31,201.26,4.4692]
[1759031533450,7.97,201.31,201.27,7.52]
[1759031534050,7.97,201.31,201.26,4.4692]
[1759031534250,4.468,201.32,201.25,5.57498529]
[1759031534446,7.97,201.31,201.25,5.57498529]
[1759031534652,7.97,201.33,201.24,4.4696]
[1759031534951,4.4685,201.3,201.24,5.57498529]
[1759031535152,7.97,201.29,201.24,5.57498529]
[1759031535357,4.4685,201.3,201.24,13.09498529]
[1759031537054,4.4685,201.3,201.24,7.52]
[1759031537956,7.97,201.29,201.23,13.09498529]
[1759031539353,7.97,201.32,201.23,7.52]
[1759031539551,7.97,201.3,201.23,7.52]
[1759031539953,4.469,201.28,201.23,7.52]
[1759031540154,7.97,201.27,201.23,7.52]
[1759031540360,4.469,201.28,201.23,7.52]
[1759031541162,7.97,201.27,201.23,7.52]
[1759031541364,4.469,201.28,201.23,7.52]
[1759031541658,7.97,201.27,201.23,7.52]
[1759031541862,7.97,201.27,201.22,7.52]
[1759031542061,7.97,201.27,201.22,5.57498529]
[1759031542461,12.4384,201.3,201.23,7.52]
[1759031543270,12.4384,201.3,201.23,4.4698]
[1759031543565,12.4384,201.3,201.24,8.07]
[1759031557970,7.83,201.28,201.22,13.64498529]
[1759031559672,12.299,201.28,201.22,13.64498529]
[1759031560371,7.83,201.27,201.23,5.57498529]
[1759031560576,7.83,201.27,201.24,8.07]
[1759031561073,12.2985,201.3,201.24,8.07]
[1759031561270,12.2985,201.3,201.24,13.64498529]
[1759031562567,4.4687,201.29,201.24,8.07]
[1759031562973,12.2987,201.29,201.24,8.07]
[1759031563168,4.4687,201.29,201.23,10.04478529]
[1759031563373,12.2987,201.29,201.24,8.07]
[1759031563573,4.4687,201.29,201.23,10.04478529]
[1759031563768,12.2987,201.29,201.24,8.07]
[1759031564074,7.83,201.28,201.23,10.04478529]
[1759031564273,7.83,201.28,201.24,8.07]
[1759031564472,12.2987,201.29,201.24,8.07]
[1759031564672,4.4687,201.29,201.24,8.07]
[1759031564868,12.2987,201.29,201.23,10.04478529]
[1759031565075,4.4687,201.29,201.23,10.04478529]
[1759031565272,12.2987,201.29,201.24,8.07]
[1759031565575,4.4687,201.29,201.23,10.04478529]
[1759031565764,4.4687,201.29,201.24,8.07]
[1759031565967,4.4687,201.29,201.23,10.04478529]
[1759031566167,12.2987,201.29,201.24,8.07]
[1759031566371,4.4687,201.29,201.23,10.04478529]
[1759031566570,12.2987,201.29,201.24,8.07]
[1759031566865,12.2983,201.31,201.25,8.07]
[1759031568572,4.4686,201.3,201.25,8.07]
[1759031568776,7.83,201.29,201.25,8.07]
[1759031569170,4.4686,201.3,201.25,8.07]
[1759031569366,7.83,201.29,201.25,8.07]
[1759031569571,4.4686,201.3,201.25,8.07]
[1759031570178,7.83,201.29,201.25,8.07]
[1759031570677,7.83,201.29,201.24,10.04458529]
[1759031571074,7.83,201.29,201.25,8.07]
[1759031571775,7.83,201.29,201.24,10.04458529]
[1759031572283,7.83,201.29,201.25,8.07]
[1759031572577,7.83,201.29,201.24,10.04458529]
[1759031572783,12.298,201.32,201.26,8.07]
[1759031573677,12.298,201.32,201.26,12.5392]
[1759031575184,1.90021933,201.34,201.26,12.5392]
[1759031575185,4.4676,201.34,201.26,7.56]
[1759031575484,4.4676,201.34,201.27,7.56]
[1759031575877,4.4676,201.34,201.28,4.4687]
[1759031576177,7.99,201.34,201.28,4.4687]
[1759031576381,7.99,201.34,201.29,7.56]
[1759031576580,7.99,201.35,201.29,7.56]
[1759031580183,12.4574,201.35,201.29,7.56]
[1759031589586,12.4574,201.35,201.29,4.4685]
[1759031589783,4.4674,201.35,201.29,4.4685]
[1759031589989,7.99,201.34,201.29,4.4685]
[1759031590184,7.99,201.34,201.3,7.94]
[1759031590391,4.4674,201.35,201.3,7.94]
[1759031590890,7.99,201.34,201.3,7.94]
[1759031591500,4.4674,201.35,201.3,7.94]
[1759031591902,7.99,201.34,201.29,4.4685]
[1759031592194,7.99,201.34,201.3,7.94]
[1759031592392,7.99,201.34,201.29,12.4085]
[1759031592597,4.4674,201.35,201.29,4.4685]
[1759031592798,7.99,201.34,201.29,4.4685]
[1759031592995,7.99,201.34,201.3,7.94]
[1759031593196,70.71795641,201.32,201.26,5.57498529]
[1759031593396,7.99,201.29,201.23,7.94]
[1759031593699,7.99,201.29,201.2,9.15555641]
[1759031594002,7.99,201.29,201.22,7.94]
[1759031594998,7.99,201.29,201.24,4.4696]
[1759031595195,1.21555641,201.32,201.23,7.94]
[1759031595398,7.99,201.33,201.25,7.94]
[1759031596700,1.21555641,201.34,201.27,7.94]
[1759031597302,7.99,201.35,201.27,7.94]
[1759031597602,12.4574,201.35,201.27,12.4089]
[1759031598104,12.4574,201.35,201.27,4.4689]
[1759031598300,12.4574,201.35,201.28,7.94]
[1759031600093,7.99,201.33,201.28,7.94]
[1759031600299,1.21555641,201.34,201.28,7.94]
[1759031600499,7.99,201.33,201.25,4.4695]
[1759031600703,7.99,201.33,201.25,12.4095]
[1759031600906,7.99,201.33,201.26,7.94]
[1759031601606,12.4579,201.33,201.26,7.94]
[1759031603308,12.4579,201.33,201.26,9.15555641]
[1759031607109,12.4579,201.33,201.27,7.98]
[1759031609010,7.99,201.33,201.28,1.21555641]
[1759031609206,7.99,201.33,201.28,9.19555641]
[1759031609406,7.99,201.33,201.28,1.21555641]
[1759031610309,7.99,201.33,201.29,7.98]
[1759031610505,7.99,201.33,201.28,1.21555641]
[1759031610710,8.0,201.36,201.3,7.98]
[1759031610910,11.44582183,201.35,201.29,12.4486]
[1759031611114,8.0,201.35,201.29,12.4486]
[1759031611413,8.0,201.33,201.3,7.98]
[1759031613716,8.0,201.33,201.29,4.4686]
[1759031614013,8.0,201.33,201.3,7.98]
[1759031614705,8.0,201.33,201.29,4.4686]
[1759031614910,8.0,201.33,201.3,7.98]
[1759031616615,4.4672,201.36,201.28,9.19555641]
[1759031616616,8.0,201.35,201.28,9.19555641]
[1759031616813,8.0,201.33,201.28,9.19555641]
[1759031617008,3.44732337,201.34,201.28,9.19555641]
[1759031617009,8.0,201.35,201.28,7.98]
[1759031617213,8.0,201.33,201.28,7.98]
[1759031617418,8.0,201.35,201.28,7.98]
[1759031617613,12.4679,201.33,201.28,7.98]
[1759031618011,8.0,201.33,201.28,7.98]
[1759031618215,8.0,201.33,201.24,9.19555641]
[1759031618416,1.21555641,201.34,201.24,7.98]
[1759031618417,8.0,201.31,201.24,7.98]
[1759031619619,4.4686,201.3,201.24,7.98]
[1759031620117,4.4686,201.3,201.24,9.19555641]
[1759031620615,4.4686,201.3,201.24,1.21555641]
[1759031621018,8.0,201.29,201.24,9.19555641]
[1759031621217,8.0,201.29,201.23,4.4699]
[1759031621412,8.0,201.29,201.24,7.98]
[1759031621717,4.4686,201.3,201.23,5.68545641]
[1759031621917,8.0,201.29,201.23,13.66545641]
[1759031622121,4.4688,201.28,201.23,9.19555641]
[1759031622313,8.0,201.27,201.23,1.21555641]
[1759031622518,4.4688,201.28,201.23,9.19555641]
[1759031622721,8.0,201.27,201.23,9.19555641]
[1759031623023,4.4688,201.28,201.24,7.98]
[1759031623224,8.0,201.27,201.24,7.98]
[1759031623418,4.4688,201.28,201.24,7.98]
[1759031623719,9.21555641,201.3,201.21,9.19555641]
[1759031623923,8.0,201.28,201.21,9.19555641]
[1759031624618,8.0,201.25,201.21,9.19555641]
[1759031625024,8.0,201.25,201.21,1.21555641]
[1759031625225,8.0,201.25,201.22,7.98]
[1759031625926,8.0,201.25,201.21,1.21555641]
[1759031626120,8.0,201.25,201.22,7.98]
[1759031626715,8.0,201.25,201.21,1.21555641]
[1759031628027,8.0,201.25,201.22,7.98]
[1759031628430,8.0,201.25,201.21,1.21555641]
[1759031628726,8.0,201.25,201.22,7.98]
[1759031629126,8.0,201.25,201.21,1.21555641]
[1759031630630,8.0,201.25,201.22,7.98]
[1759031631327,8.0,201.25,201.21,1.21555641]
[1759031632727,8.0,201.25,201.22,7.98]
[1759031632927,8.0,201.25,201.21,1.21555641]
[1759031634127,8.0,201.25,201.22,8.12]
[1759031634628,8.0,201.25,201.21,1.21555641]
[1759031634824,8.0,201.25,201.22,8.12]
[1759031635024,8.0,201.25,201.21,1.21555641]
[1759031635732,8.0,201.25,201.22,8.12]
[1759031636132,8.0,201.25,201.21,1.21555641]
[1759031636328,8.0,201.25,201.22,8.12]
[1759031637530,8.0,201.25,201.21,1.21555641]
[1759031637832,8.0,201.25,201.22,8.12]
[1759031638234,8.0,201.25,201.21,1.21555641]
[1759031638527,8.0,201.25,201.22,8.12]
[1759031639934,8.0,201.25,201.21,4.4702]
[1759031640131,12.2387,201.29,201.22,10.02040635]
[1759031641736,4.4687,201.29,201.23,4.4698]
[1759031642129,7.77,201.28,201.23,4.4698]
[1759031642734,7.77,201.28,201.24,8.12]
[1759031642934,7.77,201.28,201.25,128.5]
[1759031646338,7.77,201.28,201.25,120.38]
[1759031646535,7.77,201.28,201.26,8.12]
[1759031646935,69.5069,201.31,201.19,143.62139538]
[1759031647238,7.77,201.29,201.19,143.62139538]
[1759031647536,7.77,201.29,201.2,8.12]
[1759031647938,12.2394,201.26,201.2,8.12]
[1759031649839,7.77,201.26,201.2,8.12]
[1759031650238,7.48,201.3,201.22,7.72]
[1759031650439,7.48,201.3,201.24,7.72]
[1759031652943,7.48,201.3,201.24,12.1896]
[1759031659254,7.48,201.3,201.25,7.72]
[1759031659443,4.4683,201.31,201.24,4.4696]
[1759031659644,4.4683,201.31,201.25,7.72]
[1759031659850,7.48,201.3,201.25,7.72]
[1759031660051,4.4683,201.31,201.24,4.4696]
[1759031660354,11.9483,201.31,201.25,7.72]
[1759031660547,11.9483,201.31,201.25,4.4694]
[1759031660948,4.4683,201.31,201.25,4.4694]
[1759031661143,7.48,201.3,201.25,4.4694]
[1759031661349,7.48,201.3,201.26,7.72]
[1759031661551,4.4683,201.31,201.26,7.72]
[1759031661751,4.4683,201.31,201.25,4.4694]
[1759031661953,11.9483,201.31,201.25,12.1894]
[1759031662456,9.38040635,201.33,201.23,4.4699]
[1759031662653,7.48,201.31,201.23,26.0]
[1759031662849,7.48,201.32,201.23,26.0]
[1759031663050,7.48,201.26,201.22,60.88]
[1759031663358,7.47,201.26,201.23,7.35]
[1759031668759,4.4691,201.27,201.23,7.35]
[1759031668959,11.9387,201.29,201.23,7.35]
[1759031670266,7.47,201.29,201.23,7.35]
[1759031670560,7.47,201.33,201.23,7.35]
[1759031670756,3.44749385,201.32,201.23,7.35]
[1759031670955,7.47,201.33,201.23,7.35]
[1759031671155,7.47,201.33,201.27,7.35]
[1759031672662,7.47,201.33,201.27,11.8189]
[1759031677154,7.47,201.33,201.27,7.35]
[1759031677355,4.468,201.32,201.25,4.4694]
[1759031677562,11.938,201.32,201.26,7.35]
[1759031681767,7.47,201.32,201.26,11.8191]
[1759031684672,7.47,201.32,201.26,110.3591]
[1759031685171,7.47,201.32,201.26,103.0091]
[1759031685759,7.47,201.33,201.27,7.35]
[1759031688574,7.47,201.34,201.25,120.36]
[1759031688770,1.90040635,201.35,201.24,11.8197]
[1759031688965,7.47,201.33,201.24,132.1797]
[1759031689161,1.90040635,201.35,201.24,132.1797]
[1759031689366,3.44753719,201.34,201.24,132.1797]
[1759031689566,7.47,201.31,201.24,132.1797]
[1759031690768,11.9383,201.31,201.24,132.1797]
[1759031691780,11.9383,201.31,201.25,7.35]
[1759031694382,4.4685,201.3,201.25,7.35]
[1759031694781,12.2185,201.3,201.24,12.5997]
[1759031694984,4.4685,201.3,201.25,120.38]
[1759031695179,7.75,201.29,201.26,8.13]
[1759031698381,7.75,201.29,201.25,120.38]
[1759031698581,7.75,201.29,201.26,8.13]
[1759031699085,7.75,201.29,201.25,120.38]
[1759031699286,4.4685,201.3,201.26,8.13]
[1759031699882,12.2185,201.3,201.26,8.13]
[1759031700082,12.2185,201.3,201.25,120.38]
[1759031700778,4.468,201.32,201.26,8.13]
[1759031702586,4.468,201.32,201.26,12.5992]
[1759031703489,4.468,201.32,201.26,4.4692]
[1759031703982,4.468,201.32,201.27,8.13]
[1759031704185,7.75,201.31,201.26,4.4692]
[1759031704389,7.75,201.31,201.27,8.13]
[1759031704682,7.75,201.31,201.26,4.4692]
[1759031704887,12.2176,201.34,201.27,8.13]
[1759031705386,12.2176,201.34,201.28,8.13]
[1759031706690,7.75,201.34,201.28,5.68457419]
[1759031707881,1.21587419,201.35,201.28,1.21587419]
[1759031708079,7.75,201.34,201.28,9.34587419]
[1759031709391,4.4679,201.33,201.28,1.21587419]
[1759031709588,4.4679,201.33,201.3,7.55]
[1759031709788,7.38,201.32,201.3,7.55]
[1759031710194,4.4679,201.33,201.29,120.36]
[1759031710398,11.8479,201.33,201.3,7.55]
[1759031710695,7.38,201.32,201.3,7.55]
[1759031711603,4.4673,201.36,201.3,7.55]
[1759031712298,4.4673,201.36,201.3,127.91]
[1759031712593,11.8473,201.36,201.3,127.91]
[1759031713798,11.8473,201.36,201.3,120.36]
[1759031714096,7.38,201.35,201.31,7.55]
[1759031714297,7.38,201.35,201.3,120.36]
[1759031714492,7.38,201.35,201.31,7.55]
[1759031714998,7.38,201.35,201.3,120.36]
[1759031715398,7.38,201.35,201.31,7.55]
[1759031715600,7.38,201.35,201.3,120.36]
[1759031716194,7.38,201.35,201.31,7.55]
[1759031716504,1.21587419,201.38,201.31,7.55]
[1759031716505,13.06247419,201.38,201.31,7.55]
[1759031716802,3.45476242,201.37,201.31,7.55]
[1759031717003,3.45476242,201.36,201.31,7.55]
[1759031717305,13.06247419,201.38,201.31,7.55]
[1759031717601,3.4545444,201.37,201.31,7.55]
[1759031717808,3.4545444,201.36,201.3,126.04407419]
[1759031718009,13.06247419,201.38,201.31,7.55]
[1759031718308,3.45517389,201.37,201.31,7.55]
[1759031718505,13.06247419,201.38,201.31,7.55]
[1759031720008,4.4669,201.37,201.3,126.04407419]
[1759031720205,7.38,201.36,201.31,7.55]
[1759031720810,4.4669,201.37,201.3,126.04407419]
[1759031721010,7.38,201.36,201.31,7.55]
[1759031721210,4.4669,201.37,201.3,126.04407419]
[1759031721405,7.38,201.36,201.3,126.04407419]
[1759031721601,7.38,201.36,201.31,7.55]
[1759031721807,7.38,201.36,201.3,126.04407419]
[1759031721808,7.38,201.36,201.3,133.59407419]
[1759031723609,11.8472,201.36,201.3,133.59407419]
[1759031724913,11.8472,201.36,201.3,129.12587419]
[1759031727122,11.8472,201.36,201.31,8.15]
[1759031727411,12.1472,201.36,201.31,8.15]
[1759031728223,4.4672,201.36,201.3,121.57587419]
[1759031728517,7.68,201.35,201.3,121.57587419]
[1759031728718,7.68,201.35,201.31,8.15]
[1759031728910,7.68,201.35,201.3,121.57587419]
[1759031730121,7.68,201.35,201.31,8.15]
[1759031730315,7.68,201.35,201.3,121.57587419]
[1759031730517,7.68,201.35,201.31,8.15]
[1759031731215,7.68,201.35,201.3,121.57587419]
[1759031732222,7.68,201.34,201.31,8.15]
[1759031732417,4.4675,201.35,201.31,8.15]
[1759031732721,7.68,201.37,201.31,8.15]
[1759031733615,4.4676,201.34,201.31,8.15]
[1759031733823,12.1476,201.34,201.3,120.36]
[1759031734122,12.1476,201.34,201.31,8.15]
[1759031734519,12.1476,201.34,201.3,120.36]
[1759031734919,12.1476,201.34,201.31,8.15]
[1759031735217,4.4671,201.36,201.3,120.36]
[1759031735720,4.4674,201.35,201.3,120.36]
[1759031736023,4.4674,201.35,201.31,8.15]
[1759031736423,4.4674,201.35,201.3,120.36]
[1759031736717,4.4674,201.35,201.31,8.15]
[1759031736913,12.1474,201.35,201.3,120.36]
[1759031737723,12.1474,201.35,201.31,8.15]
[1759031738223,12.1474,201.35,201.3,120.36]
[1759031738426,12.1474,201.35,201.31,8.15]
[1759031738725,12.1474,201.35,201.3,120.36]
[1759031739621,12.1474,201.35,201.31,8.15]
[1759031740023,12.1474,201.35,201.3,120.36]
[1759031740324,12.1474,201.35,201.31,8.15]
[1759031740518,12.1474,201.35,201.3,120.36]
[1759031741320,7.68,201.34,201.31,8.15]
[1759031742025,12.1474,201.35,201.3,120.36]
[1759031742427,12.1474,201.35,201.31,8.15]
[1759031742628,12.1474,201.35,201.3,120.36]
[1759031743126,12.1474,201.35,201.31,8.15]
[1759031743425,12.1474,201.35,201.3,120.36]
[1759031744226,12.1474,201.35,201.31,8.15]
[1759031744424,12.1474,201.35,201.3,120.36]
[1759031744623,12.1474,201.35,201.31,8.15]
[1759031745124,12.1474,201.35,201.3,120.36]
[1759031746225,12.1474,201.35,201.31,8.15]
[1759031746429,12.1474,201.35,201.3,120.36]
[1759031747725,12.1474,201.35,201.31,8.15]
[1759031747924,12.1474,201.35,201.3,120.36]
[1759031748126,12.1474,201.35,201.31,8.15]
[1759031749028,12.1474,201.35,201.3,120.36]
[1759031749229,12.1474,201.35,201.31,8.15]
[1759031749723,12.1474,201.35,201.3,120.36]
[1759031750121,12.1474,201.35,201.31,8.15]
[1759031750723,12.1474,201.35,201.3,120.36]
[1759031750924,12.1474,201.35,201.31,8.15]
[1759031751126,12.1474,201.35,201.3,120.36]
[1759031751830,12.1474,201.35,201.31,8.15]
[1759031752025,12.1474,201.35,201.3,120.36]
[1759031752224,12.1474,201.35,201.31,8.15]
[1759031752424,12.1474,201.35,201.3,120.36]
[1759031752624,12.1474,201.35,201.31,8.15]
[1759031753033,12.1474,201.35,201.3,120.36]
[1759031753534,12.1474,201.35,201.31,8.09]
[1759031753730,12.1474,201.35,201.3,120.36]
[1759031754127,12.1474,201.35,201.31,8.09]
[1759031754329,12.1474,201.35,201.3,120.36]
[1759031754724,12.1474,201.35,201.31,8.09]
[1759031755222,12.1474,201.35,201.3,120.36]
[1759031755632,12.1474,201.35,201.31,8.09]
[1759031755829,12.1474,201.35,201.3,120.36]
[1759031756438,12.1474,201.35,201.31,8.09]
[1759031757532,4.4676,201.34,201.3,120.36]
[1759031758024,4.4676,201.34,201.31,8.09]
[1759031758228,4.4676,201.34,201.3,120.36]
[1759031758528,4.4676,201.34,201.31,8.09]
[1759031758731,4.4676,201.34,201.3,120.36]
[1759031758933,4.4676,201.34,201.31,8.09]
[1759031759134,4.4676,201.34,201.3,120.36]
[1759031759529,4.4676,201.34,201.31,8.09]
[1759031759832,4.4676,201.34,201.3,120.36]
[1759031760031,4.4676,201.34,201.31,8.09]
[1759031760428,4.4676,201.34,201.3,120.36]
[1759031760624,4.4676,201.34,201.31,8.09]
[1759031761027,7.44,201.32,201.27,1.21068019]
[1759031761230,7.44,201.35,201.28,8.09]
[1759031761434,7.44,201.33,201.28,8.09]
[1759031761634,69.4892,201.36,201.28,8.09]
[1759031761836,7.44,201.34,201.28,8.09]
[1759031762636,11.9083,201.31,201.28,8.09]
[1759031763132,11.9083,201.31,201.27,121.51068019]
[1759031763737,11.9083,201.31,201.28,8.09]
[1759031763937,11.9083,201.31,201.27,121.51068019]
[1759031764134,4.4679,201.33,201.28,8.09]
[1759031764733,4.4679,201.33,201.27,121.51068019]
[1759031765737,7.44,201.32,201.27,121.51068019]
[1759031765939,7.44,201.32,201.28,8.09]
[1759031766135,7.44,201.32,201.27,121.51068019]
[1759031766539,11.9081,201.32,201.28,8.09]
[1759031766737,11.9081,201.32,201.27,121.51068019]
[1759031766935,11.9081,201.32,201.28,8.09]
[1759031767334,11.9081,201.32,201.27,121.51068019]
[1759031767536,11.9081,201.32,201.28,8.09]
[1759031768138,11.9081,201.32,201.29,128.37]
[1759031769236,11.9081,201.32,201.3,8.09]
[1759031778250,4.4681,201.32,201.3,8.09]
[1759031778454,7.59,201.31,201.3,8.09]
[1759031779357,12.0581,201.32,201.3,8.09]
[1759031783950,7.59,201.32,201.3,8.09]
[1759031784150,7.48,201.39,201.3,7.39]
[1759031784355,3.44241768,201.38,201.3,7.39]
[1759031784551,7.48,201.39,201.3,7.39]
[1759031785757,4.4667,201.38,201.31,7.39]
[1759031785958,4.4667,201.38,201.33,7.39]
[1759031785959,11.9467,201.38,201.33,7.39]